Cogmind - Beta 15 @@@ ROGUE MODE // 2025.09.16 @ 11:02:02 Player: Yurom Result: Self-destructed Performance ------------- Evolutions (3) 1500 Regions Visited (4) 800 Robots Destroyed (78) 390 Value Destroyed (2058) 2058 Prototype IDs (3) 60 Alien Tech Used (0) 0 Bonus (0) 0 TOTAL SCORE: 4808 Bonus ------- None Cogmind --------- Core Integrity 430/700 Matter 237/300 Energy 46/100 System Corruption 4% Temperature Cool (14) Movement Core (250) Ox4 Location -7/Factory Parts ------- > --- POWER (2) -------- (None) > --- PROPULSION (3) --- Improved VTOL Module > --- UTILITY (5) ------ Medium Storage Unit Transmission Jammer > --- WEAPON (3) ------- Advanced Beam Rifle Mining Claw > --- INVENTORY (10) --- (None) Peak State ------------ > --- POWER ------------ Light Nuclear Core Light Nuclear Core > --- PROPULSION ------- VTOL Module VTOL Module > --- UTILITY ---------- Improved Heat Sink Medium Storage Unit Advanced Visual Processing Unit Transmission Jammer > --- WEAPON ----------- Advanced Beam Rifle Advanced Beam Rifle Heavy Particle Cannon > --- INVENTORY -------- Aerolev Unit Improved VTOL Module Mining Claw [Rating: 32] Favorites ----------- Power Light Nuclear Core Engine Light Ion Engine Power Core Light Nuclear Core Propulsion Light Treads Treads Light Treads Wheel Wheel Hover Unit Aerolev Unit Flight Unit VTOL Module Utility Medium Storage Unit Device Improved Heat Sink Storage Medium Storage Unit Processor Targeting Computer Weapon EM Pulse Gun Energy Gun EM Pulse Gun Energy Cannon Heavy Particle Cannon Ballistic Gun High-powered Shotgun Ballistic Cannon Light Cannon Launcher Grenade Launcher Slashing Weapon Mining Claw Build | -11 -10 -9 -8 -7 ------- Run | Yrd Mat Mat Mat Fac Slots Evolved 6 | . . 2 2 2 Power 1 | . . . 1 . Propulsion 1 | . . 1 . . Utility 3 | . . 1 . 2 Weapon 1 | . . . 1 . Parts Attached 49 | 6 2 7 25 9 Power 9 | 1 . 2 5 1 Engine 5 | 1 . 1 3 . Core 4 | . . 1 2 1 Reactor . | . . . . . Propulsion 13 | 2 . 2 7 2 Treads 7 | 2 . 2 3 . Leg . | . . . . . Wheel 2 | . . . 2 . Hover 1 | . . . 1 . Flight 3 | . . . 1 2 Utility 8 | 1 1 2 3 1 Device 3 | . . 1 1 1 Storage 2 | 1 . 1 . . Processor 3 | . 1 . 2 . Hackware . | . . . . . Protection . | . . . . . Artifact . | . . . . . Weapon 19 | 2 1 1 10 5 Energy Gun 7 | 2 . . 1 4 Energy Cannon 6 | . . 1 5 . Ballistic Gun 1 | . . . 1 . Ballistic Cannon 1 | . 1 . . . Launcher 3 | . . . 3 . Special Weapon . | . . . . . Impact Weapon . | . . . . . Slashing Weapon 1 | . . . . 1 Piercing Weapon . | . . . . . Special Melee Weapon . | . . . . . Unidentified Prototypes 3 | . . . 2 1 Parts Lost 28 | . 1 1 17 9 Power 7 | . . 1 4 2 Propulsion 7 | . . . 4 3 Utility 4 | . . . 3 1 Weapon 10 | . 1 . 6 3 Highest Loss Streak 8 | . 1 1 8 5 To Critical Strikes . | . . . . . Average Backups 2 | . 1 3 2 2 Power . | . . . . . Propulsion . | . . . . 2 Utility . | . . . . . Weapon 1 | . 1 3 2 . Tool/Special . | . . . . . Unused Backups 1 | . 1 . . . Power . | . . . . . Propulsion . | . . . . . Utility . | . . . . . Weapon 1 | . 1 . . . Tool/Special . | . . . . . Average Slot Usage (%) 79 | . 94 96 70 61 Engine 7 | . 14 10 5 . Core 3 | . . . 2 11 Treads 16 | . 28 31 10 1 Wheel 1 | . . . 2 1 Hover 1 | . . . 3 . Device 5 | . . 10 2 13 Storage 10 | . 14 11 9 7 Processor 9 | . 10 11 11 3 Energy Gun 7 | . 24 . 1 6 Energy Cannon 6 | . . 10 7 8 Ballistic Gun 1 | . . . 4 . Ballistic Cannon 2 | . 2 11 . . Launcher 4 | . . . 10 . Peak Build Rating 32 | 6 7 15 31 32 Average Rating 14 | 4 6 13 18 22 On Entrance 9 | . 6 7 15 21 Naked Turns . | . . . . . Heaviest Build 34 | 12 13 27 34 32 Greatest Support 62 | 40 40 60 62 10 Greatest Overweight (x) 9 | . . . 6 9 Average Overweight (x) . | . . . . 4 Largest Inventory Capacity 10 | 8 8 10 10 10 Average Capacity 9 | 5 8 9 10 10 Most Carried 5 | . 4 4 5 5 Average Carried 2 | . 1 3 2 3 Final Capacity 10 | 8 8 10 10 10 Final Carried 3 | . 3 3 3 . Class Distribution -------------------- 46% | Mutant 20% | Gunner 19% | Scavenger-Mutant 7% | Scavenger-Skirmisher 3% | Scavenger-Gunner Dominant Class ---------------- Mutant | -10/Materials Mutant | -9/Materials Gunner | -8/Materials Scavenger-Mutant | -7/Factory Resources | -11 -10 -9 -8 -7 ----------- Run | Yrd Mat Mat Mat Fac Matter Collected 1167 | 250 16 291 570 40 Remotely . | . . . . . Salvage Created 2656 | . 507 973 1032 144 Parts 145 | . 33 51 52 9 Haulers Intercepted 5 | . 1 3 1 . Recyclers Shooed 3 | . 2 1 . . Parts Field Recycled . | . . . . . Retrieved Matter . | . . . . . Parts Self-Destructed . | . . . . . Prevented . | . . . . . Kills | -11 -10 -9 -8 -7 ------- Run | Yrd Mat Mat Mat Fac Combat Hostiles Destroyed 51 | . 8 17 22 4 Guns 8 | . 6 . 2 . Cannons 26 | . . 17 6 3 AOE 15 | . 1 . 14 . Classes Destroyed 10 | . 4 4 1 1 Worker 5 | . . 1 4 . Builder 7 | . 1 3 3 . Hauler 5 | . 1 3 1 . Recycler 5 | . . 2 3 . Operator 1 | . . . . 1 Watcher 4 | . 2 2 . . Swarmer 14 | . . 4 6 4 Grunt 25 | . 8 8 9 . Sentry 11 | . . 5 6 . Hunter 1 | . . . 1 . Best Kill Streak 8 | . 5 8 6 4 Combat Bots Only 8 | . 4 8 4 4 Max Kills in Single Turn 3 | . 1 1 3 1 Gunslinging . | . . . . . Exploded 3 | . 1 . 3 . Melee . | . . . . . Uniques/NPCs Destroyed . | . . . . . Combat | -11 -10 -9 -8 -7 -------- Run | Yrd Mat Mat Mat Fac Hostile Shots Fired 397 | . 18 112 190 77 Missed 121 | . 5 40 57 19 Hits 276 | . 13 72 133 58 Projectile 276 | . 13 72 133 58 Critical Strikes 11 | . . 3 3 5 Damage Taken 3805 | . 181 892 1802 930 Core 925 | . 22 159 474 270 Absorbed by Shields . | . . . . . Core Remaining (%) 66 | 100 91 60 13 . Volleys Fired 165 | . 27 59 57 22 Largest 3 | . 2 2 3 3 Hottest 191 | . 80 105 191 191 Shots Fired 332 | . 54 118 115 45 Gun 104 | . 54 . 33 17 Cannon 197 | . . 118 51 28 Launcher 31 | . . . 31 . Special . | . . . . . Kinetic 75 | . . 59 16 . Thermal 159 | . . 59 55 45 Explosive 31 | . . . 31 . Electromagnetic 67 | . 54 . 13 . Robot Hit Streak 8 | . 7 8 8 5 Robot Miss Streak 5 | . 2 5 4 4 Penetration Max . | . . . . . Secondary Targets 1 | . 1 . . . Max Gunslinging Chain 1 | . 1 . . . Shots Hit Robots 188 | . 33 69 65 21 Core Hits 121 | . 19 34 61 7 Critical Kills 1 | . . . . 1 Critical Parts Destroyed . | . . . . . Critical Strikes 4 | . 1 1 . 2 Burn 1 | . . . . 1 Meltdown 1 | . . . . 1 Blast 1 | . . 1 . . Corrupt 1 | . 1 . . . Melee Attacks . | . . . . . Impact . | . . . . . Slashing . | . . . . . Piercing . | . . . . . Sneak Attacks . | . . . . . Combat Hostiles . | . . . . . Follow-up Attacks . | . . . . . Damage Inflicted 5394 | . 603 1637 2657 497 Guns 1132 | . 494 . 439 199 Cannons 2555 | . . 1584 673 298 Explosions 1623 | . 92 . 1531 . Melee . | . . . . . Ramming 84 | . 17 53 14 . Kinetic 837 | . . 559 278 . Thermal 2315 | . 92 1025 701 497 Explosive 1463 | . . . 1463 . Electromagnetic 695 | . 494 . 201 . Impact . | . . . . . Slashing . | . . . . . Piercing . | . . . . . Highest Corruption 4 | . . 1 . 4 Average Corruption 3 | . . 1 . 3 Corruption Purged . | . . . . . Corruption Blocked . | . . . . . Effects 12 | . . . . 12 Message Errors 3 | . . . . 3 Matter Fused 3 | . . . . 3 Heat Flow Errors 1 | . . . . 1 Energy Discharges 3 | . . . . 3 Data Loss (major) 1 | . . . . 1 Weapon Failures 1 | . . . . 1 Overload Shots . | . . . . . Overflow Damage 66 | . . 10 56 . Projectiles 16 | . . 10 6 . Explosions 50 | . . . 50 . Melee . | . . . . . Knockbacks 2 | . . 2 . . Impact . | . . . . . Kinetic 2 | . . 2 . . Secondary . | . . . . . Self-Inflicted Damage 59 | . . . 59 . Shots 4 | . . . 4 . Rammed 23 | . 5 9 9 . Targets Rammed 25 | . 6 10 9 . Kicked . | . . . . . Crushed 2 | . 1 1 . . Highest Temperature 324 | . 135 100 192 324 Average Temperature 58 | . 44 31 47 125 Received Heat Transfer 1458 | . 90 369 594 405 Effects 1 | . . . . 1 Energy Bleed 1 | . . . . 1 Siege Activations . | . . . . . Martial Activations . | . . . . . Shielding Activations . | . . . . . Robots Disrupted . | . . . . . Combat Hostiles . | . . . . . Robots Corrupted 1 | . 1 . . . Combat Hostiles 1 | . 1 . . . Parts Fried 1 | . 1 . . . Impact Corruptions . | . . . . . Robots Melted 1 | . . . . 1 Combat Hostiles 1 | . . . . 1 Parts Melted 4 | . . . 1 3 Heat Transferred 3689 | . 50 1517 1197 925 Parts Sabotaged . | . . . . . Parts Stolen . | . . . . . Parts Stripped . | . . . . . Power Chain Reactions 1 | . 1 . . . Alert | -11 -10 -9 -8 -7 ------- Run | Yrd Mat Mat Mat Fac Maximum Alert Level 1 | . . 1 1 . Low Security (%) 76 | 100 100 59 55 100 Level 1 23 | . . 40 44 . Level 2 . | . . . . . Level 3 . | . . . . . Level 4 . | . . . . . Level 5 . | . . . . . High Security . | . . . . . Max Security . | . . . . . Peak Influence 360 | . 133 317 360 160 Initial 160 | . . . 126 160 Average 100 | . 34 126 183 12 Influence Increases 1868 | . 260 529 939 140 Destroy 0b10 Robot/C 1020 | . 160 340 440 80 Destroy 0b10 Robot/NC 135 | . 20 55 55 5 Destroy Leader 268 | . 36 100 122 10 Successful Hack 14 | . 14 . . . Disable Machine 150 | . 15 15 75 45 Destroy Structure 221 | . . 19 202 . Lose Combat Pursuer 60 | . 15 . 45 . Influence Decreases 1868 | . 260 230 885 493 Entered New Map 366 | . . . 173 193 Time Decay 1117 | . 250 220 542 105 Lost Part 235 | . 10 10 170 45 Purge Threat 150 | . . . . 150 Squads Dispatched 6 | . . 1 4 1 Investigation 2 | . . 1 1 . Extermination . | . . . . . Reinforcement 4 | . . . 3 1 Assault . | . . . . . Garrison . | . . . . . Intercept . | . . . . . Searches Triggered . | . . . . . Construction Impeded 3 | . . . 3 . Haulers Reinforced . | . . . . . Active Scanning Responses . | . . . . . Cargo Convoy Interrupts . | . . . . . Stealth | -11 -10 -9 -8 -7 --------- Run | Yrd Mat Mat Mat Fac Distress Signals 5 | . 3 2 . . Communications Jammed 1 | . . . . 1 Distress Signals . | . . . . . Times Spotted 75 | . 12 22 32 9 Peak Tracking Total 5 | . 3 5 5 4 Tactical Retreats 4 | . 1 . 3 . Traps | -11 -10 -9 -8 -7 ------- Run | Yrd Mat Mat Mat Fac Traps Triggered 4 | . . 2 . 2 Indirectly . | . . . . . Trap Hack Attempts . | . . . . . Triggered . | . . . . . Disarmed . | . . . . . Reprogrammed 1 | . 1 . . . Reused . | . . . . . Traps Extracted . | . . . . . Installed . | . . . . . Triggered . | . . . . . Machines | -11 -10 -9 -8 -7 ---------- Run | Yrd Mat Mat Mat Fac Machines Disabled 12 | . 3 1 5 3 Max in Single Turn 2 | . 2 1 1 1 Machines Repaired . | . . . . . Machines Dismantled . | . . . . . Machines Sabotaged . | . . . . . Overloaded Fab Kills . | . . . . . Hacking | -11 -10 -9 -8 -7 --------- Run | Yrd Mat Mat Mat Fac Machines Accessed 9 | . 5 1 1 2 Terminals 7 | . 4 1 1 1 Fabricators 1 | . . . . 1 Repair Stations . | . . . . . Recycling Units 1 | . 1 . . . Scanalyzers . | . . . . . Garrison Access . | . . . . . Total Hacks 16 | . 9 1 3 3 Successful 10 | . 7 1 . 2 Failed 6 | . 2 . 3 1 Catastrophic . | . . . . . Database Lockouts . | . . . . . Manual . | . . . . . Terminals 14 | . 8 1 3 2 Fabricators 1 | . . . . 1 Repair Stations . | . . . . . Recycling Units 1 | . 1 . . . Scanalyzers . | . . . . . Garrison Access . | . . . . . Terminal Hacks 8 | . 6 1 . 1 Alert Level 1 | . 1 . . . Unreport Threat 1 | . . . . 1 Locate Traps 1 | . 1 . . . Reprogram Traps 1 | . 1 . . . Patrol Status 1 | . 1 . . . Assault Status 1 | . 1 . . . Hauler Manifests 1 | . . 1 . . Zone Layout 1 | . 1 . . . Fabricator Hacks 1 | . . . . 1 Network Status 1 | . . . . 1 Repair Station Hacks . | . . . . . Recycling Unit Hacks 1 | . 1 . . . Report Inventory 1 | . 1 . . . Scanalyzer . | . . . . . Garrison Access Hacks . | . . . . . Unauthorized Hacks . | . . . . . Terminals . | . . . . . Fabricators . | . . . . . Repair Stations . | . . . . . Recycling Units . | . . . . . Scanalyzers . | . . . . . Garrison Access . | . . . . . Data Cores Recovered . | . . . . . Used . | . . . . . Hacking Detections 5 | . 3 . 1 1 Full Trace Events 1 | . . . 1 . Feedback Events . | . . . . . Feedback Blocked . | . . . . . Robot Schematics Acquired . | . . . . . Robots Built . | . . . . . Authchips . | . . . . . Time . | . . . . . Total Robot Build Rating . | . . . . . Part Schematics Acquired . | . . . . . Parts Built . | . . . . . Authchips . | . . . . . Time . | . . . . . Total Part Build Rating . | . . . . . Parts Repaired . | . . . . . Time . | . . . . . Parts Recycled . | . . . . . Recycled Matter . | . . . . . Retrieved Matter . | . . . . . Retrieved Components . | . . . . . Parts Scanalyzed . | . . . . . Part Schematics Acquired . | . . . . . Parts Damaged . | . . . . . Bothacking | -11 -10 -9 -8 -7 ------------ Run | Yrd Mat Mat Mat Fac Used RIF Installer . | . . . . . Robots Hacked . | . . . . . Non-combat . | . . . . . Combat . | . . . . . Robot Hacks Applied . | . . . . . Relay Couplers Released . | . . . . . Fabnet Peak Effective % . | . . . . . Robots Rewired . | . . . . . Allies Hacked . | . . . . . Hacks Repelled . | . . . . . Allies | -11 -10 -9 -8 -7 -------- Run | Yrd Mat Mat Mat Fac Total Allies . | . . . . . Largest Group . | . . . . . Highest-Rated Group . | . . . . . Highest-Rated Ally . | . . . . . Total Orders . | . . . . . Ally Attacks . | . . . . . Total Damage . | . . . . . Kills . | . . . . . Allies Corrupted . | . . . . . Allies Melted . | . . . . . Intel | -11 -10 -9 -8 -7 ------- Run | Yrd Mat Mat Mat Fac Active Infowar (turns) 1879 | . . . 1116 763 Optics 1434 | . . . 1116 318 Jamming 636 | . . . . 636 Robot Analysis Total . | . . . . . Derelict Logs Recovered . | . . . . . Drone Launches . | . . . . . Drone Recoveries . | . . . . . Exploration | -11 -10 -9 -8 -7 ------------- Run | Yrd Mat Mat Mat Fac Turns Passed 4113 | 165 926 697 1543 782 Spaces Moved 1957 | 117 518 308 751 263 Core 111 | 27 . . 19 65 Treads 1496 | 90 518 308 580 . Legs . | . . . . . Wheels 285 | . . . 152 133 Hover . | . . . . . Flight 65 | . . . . 65 Fastest Speed 50 | 50 160 160 90 125 Average Speed 178 | 134 160 160 176 264 Slowest Speed 595 | 160 160 160 350 595 Overloaded Moves . | . . . . . Propulsion Burnouts . | . . . . . Robots Hopped . | . . . . . Potential Cave-ins . | . . . . . Cave-ins Triggered . | . . . . . Exploration Rate (%) 28 | 6 64 19 52 3 Regions Visited 4 Branch Regions . Pre-discovered Areas . | . . . . . Known Exits Taken . | . . . . . Unknown Exits Taken 4 | 1 1 1 1 . Scrap Searched . | . . . . . Spaces Dug . | . . . . . Terrain Destroyed 227 | . . 16 211 . Melee . | . . . . . Projectile 21 | . . 16 5 . AOE 206 | . . . 206 . Terrain Rammed . | . . . . . Walls Destroyed . | . . . . . Machines Disabled . | . . . . . Actions | -11 -10 -9 -8 -7 --------- Run | Yrd Mat Mat Mat Fac Total 2222 | 122 557 386 849 308 Wait 5 | . . . 2 3 Move 1953 | 116 517 307 750 263 Hop . | . . . . . Pick Up 5 | . 4 . 1 . Fast Attach 33 | 6 2 3 16 6 Attach 7 | . . . 4 3 Detach 7 | . . . 2 5 Swap 12 | . . 4 6 2 Drop 10 | . 1 3 2 4 Fire 165 | . 27 59 57 22 Melee . | . . . . . Ram 2 | . . . 2 . Kick . | . . . . . Crush 23 | . 6 10 7 . Escape Stasis . | . . . . . Rewire . | . . . . . Trap . | . . . . . Miscellaneous . | . . . . . Route ------- -11/Scrapyard -10/Materials (discovered 4 exits: *Mat / [*Min x2] / [*Sub]) -9/Materials -8/Materials (discovered 3 exits: *Fac x2 / [*Sto]) -7/Factory History --------- Turn | Location | Event 11 | -11/Scrapyard | Discovered new exit (range 16) 166 | -11/Scrapyard | Entered Materials 192 | -10/Materials | Discovered new exit (range 13) 300 | -10/Materials | Build established: Mutant 408 | -10/Materials | Discovered new exit (range 12) 590 | -10/Materials | Discovered new exit (range 12) 666 | -10/Materials | Derelicts attacked the area 756 | -10/Materials | Discovered new exit (range 19) 1092 | -10/Materials | Entered another Materials area 1092 | -9/Materials | Evolved 2 slots: Propulsion x1, Utility x1 1421 | -9/Materials | Destroyed 8 combat bots 1777 | -9/Materials | Discovered new exit (range 5) 1789 | -9/Materials | Entered another Materials area 1789 | -8/Materials | Evolved 2 slots: Power x1, Weapon x1 2018 | -8/Materials | Lost 7 parts (1p2n2u2w) 2136 | -8/Materials | Discovered new exit (range 15) 2190 | -8/Materials | Discovered new exit (range 10) 2563 | -8/Materials | Build established: Gunner 2945 | -8/Materials | Core integrity fell below 50% 3009 | -8/Materials | Lost 8 parts (2p1n1u4w) 3064 | -8/Materials | Core integrity fell below 20% 3292 | -8/Materials | Discovered new exit (range 5) 3332 | -8/Materials | Entered Factory 3332 | -7/Factory | Evolved 2 slots: Utility x2 3499 | -7/Factory | Build established: Scavenger-Skirmisher 3563 | -7/Factory | Lost 4 parts (2n2w) 3841 | -7/Factory | Build established: Scavenger-Mutant 4114 | -7/Factory | Self-destructed Last Messages --------------- System corrupted: Energy discharge (-79). Dropped Aerolev Unit. ALERT: Cargo convoy en route, clear transfer corridor. System corrupted: Energy discharge (-88). Pressure Siphon disabled. VTOL Module destroyed. G-47 Trooper suffers critical hit (Burn). G-47 Trooper signal jammed. Lgt. Nuclear Core destroyed. Critical hit (Burn: +37). Lgt. Nuclear Core destroyed. Overheating: Energy bleed (-16). System corrupted: Hvy. Particle Cannon failed to cycle. Hvy. Particle Cannon destroyed. Critical hit (Burn: +37). M-13 Machinist repairs G-47 Trooper. Critical hit (Burn: +37). Imp. Heat Sink destroyed. Map ----- +----------------------------------------------------+ | ?# " " " # + | | ?# " " " # """"""""" # | | ?# " " " # # ? | | ?# " " " # """"""""" # ? | | ?# " " " # ###################?? | | ?# " " " # """"""""" #???????????????????? | | ?# " " " # #???????????????????? | | ?# " " " # """"""""" #???????????????????? | | ?# # #???????????????????? | | ?####+#### #???????????????????? | | ????# #??########+##+##? ?????????????????? | | ????# #?????????# #?? ?????????????????? | | ????# #?????????# #?? ?????????????????? | | ????# #?????????# #?? #????????????????? | | ????# #?????????# %[#?? #????????????????? | | ????# ####??????# %### ###??????????????? | | ????# #??????# % #??????????????? | | ????# ########^ ^ ^ #??????????????? | | ????# # # %""" +??????????????? | | ????# # # """ #??????????????? | | ????# # # """" #??????????????? | | ????# # # """" ##??????????????? | | ????# + # """"g #???????????????? | | ????# # # """" #???????????????? | | ????# ######## g #???????????????? | | ????# =t @ g +???????????????? | | ????################### #???????????????? | | ??????????????????????# #???????????????? | | ??????????????????????# #???????????????? | | ??????????????????????# #???????????????? | | ??????????????????????# #???????????????? | | ??????????????????????# ???????????????? | | ??????????????????????# ??????????????? | | ?????????????????????? ?????????????? | | ?????????????????????? ?????????????? | | ?????????????????????? ????????????? | | ?????????????????????? ???????????? | | ????????????????????? ???????????? | | ????????????????????? %%"" ????????????? | | ????????????????????? "%""?????????????? | | ????????????????????? """??????????????? | | ?????????????????????? ?????????????????? | | ??????????????????????????????????????????? | | ??????????????????????????????????????????? | | ??????????????????????????????????????????? | | ??????????????????????????????????????????? | | ??????????????????????????????????????????? | | ??????????????????????????????????????????? | | ??????????????????????????????????????????? | | ??????????????????????????????????????????? | +----------------------------------------------------+ Best States ------------- Heat Dissipation 48 Energy Generation 23 Energy Capacity 305 Matter Stores 300 Matter Capacity 300 Sight Range 20 Terrain Scan Density 10 Jamming Range 12 Evasion (%) 50 Targeting Accuracy 5 Target Analysis 5 Recoil Reduction 3 Item Schematics ----------------- None Robot Schematics ------------------ None Fabricated ------------ Nothing Repaired ---------- Nothing Alien Tech Used ----------------- None Achievements -------------- It's Just You Challenges ------------ None Game ------ Seed DynamicNullKatana Manual? 0 Play Time 00:34:09 Cumulative 11.4 hours Start 2025.06.26 @ 10:08:10 End 2025.09.16 @ 11:02:02 Sessions 3 Manual Loads 0 Difficulty Rogue Special Mode None Game No. 13 Rogue 13 Adventurer 0 Explorer 0 Win Type - Total 0 Types 0/0/0/0/0/0/0/0/0/0 Lore% 1 Gallery% 10 Achievement% 12 Wizard Run 0 Options --------- Layout 1 ASCII 0 Keyboard 1 Movement Arrows Keybinds 0 Fullscreen 1 Font 24/Smallcaps Map View 50x40 Zoom Use 2% Tactical HUD 0 Map Filters NONE Filters NONE Steam 1 RUN: d0cf7607-161c-45f6-bbf4-032895b84416